[Event "4th Tata Steel India Blitz Women 2022"]
[Site "Kolkota"]
[Date "2022.12.03"]
[Round "5.5"]
[White "Harika, Dronavalli"]
[Black "Dzagnidze, Nana"]
[Result "1/2-1/2"]
[ECO "A33"]
[WhiteElo "2507"]
[BlackElo "2517"]
[Annotator "TA"]
[PlyCount "77"]
[EventDate "2022.11.29"]
[EventType "tourn"]
[EventCountry "IND"]
[SourceTitle "playchess.com"]
[Source "ChessBase"]
[SourceQuality "1"]
[TimeControl "180+2"]

{[%evp 14,77,37,37,50,54,48,47,59,60,79,33,55,26,33,0,0,8,9,0,0,0,0,-63,-66,-56,-77,-78,-47,-69,-50,-45,-18,-60,0,-19,-18,-143,-112,-312,-319,-441,-469,-428,-210,-185,-173,-188,-133,-125,-27,-105,-80,-166,-71,-181,-110,-78,-51,-50,0,0,0,0,0,0]} 1. c4 {[%emt 0:00:01]} c5 {[%emt 0:00:02]} 2. Nf3 {[%emt 0:00:02]} Nf6 {[%emt 0:00:02]} 3. Nc3 {[%emt 0:00:02]} Nc6 {[%emt 0:00:01]} 4. d4 {[%emt 0:00:01]} cxd4 {[%emt 0:00:02]} 5. Nxd4 {[%emt 0:00:01]} e6 {[%emt 0:00:02]} 6. g3 {[%emt 0:00:02]} Qb6 {[%emt 0:00:03]} 7. Nb3 {[%emt 0:00:15] 7.Ndb5 might become the main line.} Bb4 {[%emt 0:00:08]} 8. Bg2 {[%emt 0:00:28]} O-O {[%emt 0:00:07][%cal Od7d5] A33: Symmetrical English: 2 Nf3 Nf6 3 d4 cxd4 4 Nxd4 e6 5 Nc3 Nc6.} 9. O-O $1 {[%emt 0:00:02]} Bxc3 {[%emt 0:01:10]} 10. bxc3 {[%emt 0:00:01]} d5 {[%emt 0:00:00] White is slightly better.} 11. cxd5 {[%emt 0:00:13]} exd5 {[%emt 0:00:09]} 12. Be3 {[%emt 0:00:15] This pair of bishops is nice.} (12. Bxd5 Nxd5 13. Qxd5 Be6 $11) (12. Bg5 $16) 12... Qc7 {[%emt 0:00:10] [#]} 13. Rc1 $146 {[%emt 0:00:09]} ({Reject} 13. Bxd5 Rd8 14. c4 Bh3 $11) (13. Bg5 $5 {[%cal Rg5f6]}) ({Predecessor:} 13. Bg5 Ne4 14. Qxd5 Nxc3 15. Qc4 Qe5 16. f4 Qe3+ 17. Kh1 Be6 18. Qc5 Qxc5 19. Nxc5 Nxe2 20. Nxb7 {1-0 (43) Akbas,U (2141)-Nguyen,N (2641) Chess.com INT 2021}) 13... h6 {[%emt 0:00:18]} 14. Bd4 {[%emt 0:00:05]} ({Don't play} 14. Bxd5 Rd8 15. c4 Nxd5 16. cxd5 Bh3 $11) 14... Nxd4 {[%emt 0:00:11]} 15. cxd4 {[%emt 0:00:03]} Qe7 {[%emt 0:00:05]} 16. Re1 {[%emt 0:00:50]} Bf5 {[%emt 0:00:07]} 17. Qd2 {[%emt 0:00:06]} Rac8 {[%emt 0:00:11]} 18. Qa5 {[%emt 0:00:20]} (18. Qb2 $11) 18... b6 $15 {[%emt 0:00:02]} 19. Qa6 {[%emt 0:00:02]} Ne4 {[%emt 0:00:16]} 20. h3 {[%emt 0:00:10]} h5 {[%emt 0:00:05]} 21. h4 {[%emt 0:00:07]} Rfe8 {[%emt 0:00:06][%cal Oe4f2] Threatens to win with ...Nxf2!} 22. e3 {[%emt 0:00:03]} Red8 {[%emt 0:00:16]} 23. Qe2 {[%emt 0:00:02]} (23. Bf3 {is interesting.} g6 24. Bxe4 Qxe4 25. Nd2) 23... Bg6 {[%emt 0:00:04]} ({Better is} 23... Qa3 $15) 24. Qb2 {[%emt 0:00:03]} Qb4 {[%emt 0:00:02]} 25. Rf1 {[%emt 0:00:10]} (25. Bh3 $11 Rc4 26. Bf1) 25... a5 $17 {[%emt 0:00:03] White must now prevent ...a4.} 26. Rxc8 $2 {[%emt 0:00:02]} (26. a3 $17 Qb5 27. Bxe4 Bxe4 28. Qa2) 26... Rxc8 $19 {[%emt 0:00:01]} 27. Rc1 {[%emt 0:00:12] Inhibits a4.} Rxc1+ {[%emt 0:00:02]} 28. Qxc1 {[%emt 0:00:00]} a4 {[%emt 0:00:00]} (28... Nc3 $142 {And now ...Ne2+ would win.} 29. Kh2 Nxa2 30. Qc8+ Kh7) 29. Bxe4 {[%emt 0:00:02]} Bxe4 {[%emt 0:00:06][%mdl 4096] Endgame KQB-KQN} 30. Nd2 {[%emt 0:00:03]} Bf5 {[%emt 0:00:05]} ({Black should play} 30... Bg6 $19 {...a3 is the strong threat.} 31. Kh2 Qb5) 31. a3 $17 {[%emt 0:00:01]} Qd6 {[%emt 0:00:03]} (31... Qb5 $1 $17 {Hoping for ...Qd3.} 32. Qc7 f6) 32. Nf3 {[%emt 0:00:02]} (32. Nb1 $1 $11) 32... f6 {[%emt 0:00:01]} 33. Qb2 {[%emt 0:00:02] [#]} (33. Nd2 $17) 33... Kh7 {[%emt 0:00:03]} (33... Qc6 $1 $19 {has better winning chances. Strongly threatening ...Kh7.} 34. Nd2 Bd3) 34. Qc1 {[%emt 0:00:02] [#]} (34. Ne1 $17) 34... Be4 {[%emt 0:00:02]} ({Black should try} 34... Qd7 $1 $19 {aiming for ...Qb5.} 35. Nd2 Qb5) 35. Nd2 {[%emt 0:00:01]} Bd3 {[%emt 0:00:01]} 36. Qd1 {[%emt 0:00:04]} Qxa3 {[%emt 0:00:03]} (36... Qc6 $1 $15 37. Qxh5+ Kg8) 37. Qxh5+ $11 {[%emt 0:00:00] The position is equal.} Kg8 {[%emt 0:00:00]} 38. Qe8+ {[%emt 0:00:02]} Kh7 {[%emt 0:00:00]} 39. Qh5+ {[%emt 0:00:04] Weighted Error Value: White=0.35/Black=0.28 (precise)} 1/2-1/2

[Event "4th Tata Steel India Blitz Women 2022"]
[Site "Kolkota"]
[Date "2022.12.03"]
[Round "6.1"]
[White "Koneru, Humpy"]
[Black "Dzagnidze, Nana"]
[Result "1/2-1/2"]
[ECO "D55"]
[WhiteElo "2574"]
[BlackElo "2517"]
[Annotator "TA"]
[PlyCount "67"]
[EventDate "2022.11.29"]
[EventType "tourn"]
[EventCountry "IND"]
[SourceTitle "playchess.com"]
[Source "ChessBase"]
[SourceQuality "1"]
[TimeControl "180+2"]

{[%evp 15,67,12,21,4,16,36,66,34,28,25,30,23,75,71,57,-36,54,60,58,50,83,37,70,65,69,68,80,0,0,0,42,-179,-168,-352,-39,-177,-176,-158,-27,-28,-37,-43,-45,-38,-40,-57,-27,-121,0,-54,0,-112,0,-40]} 1. d4 {[%emt 0:00:01]} Nf6 {[%emt 0:00:01]} 2. Nf3 {[%emt 0:00:03]} e6 {[%emt 0:00:02]} 3. c4 {[%emt 0:00:02]} d5 {[%emt 0:00:08]} 4. Nc3 {[%emt 0:00:06]} Be7 {[%emt 0:00:02]} 5. Bg5 {[%emt 0:00:13]} h6 {[%emt 0:00:05]} 6. Bxf6 {[%emt 0:00:09]} Bxf6 {[%emt 0:00:02]} 7. e3 {[%emt 0:00:02]} O-O {[%emt 0:00:10]} 8. Qd2 {[%emt 0:00:07]} Nc6 {[%emt 0:00:38]} 9. h4 {[%emt 0:00:40] D55: Queen's Gambit Declined: 4 Bg5 Be7: Lines without ...h6 and 6...h6 7 Bxf6.} a6 {[%emt 0:00:33]} 10. O-O-O {[%emt 0:00:15]} dxc4 {[%emt 0:00:16]} 11. Bxc4 {[%emt 0:00:35] [#] White is slightly better.} (11. g4 $5 {[%cal Rg4g5]}) 11... b5 $146 {[%emt 0:00:06] Against g4} ({Predecessor:} 11... e5 12. d5 Na5 13. Bd3 b6 14. Ne4 Nb7 15. Qc3 Bg4 16. Kb1 Nd6 17. Rc1 Nxe4 18. Bxe4 {1-0 (58) Anikonov,D (2118)-Labutin,D (2144) Novokuznetsk 2014}) 12. Bd3 {[%emt 0:00:07]} Bb7 {[%emt 0:00:17]} 13. Be4 {[%emt 0:00:02]} Na5 {[%emt 0:00:27]} (13... Be7 $11 {keeps the balance.}) 14. Bxb7 $16 {[%emt 0:00:05]} Nxb7 {[%emt 0:00:01]} 15. g4 {[%emt 0:00:14]} (15. Kb1 $14) 15... Be7 {[%emt 0:00:13]} (15... b4 $1 $15 16. Ne4 Qd5) 16. Kb1 {[%emt 0:00:22][%cal Og4g5]} b4 {[%emt 0:00:05] Prevents g5.} 17. Na4 {[%emt 0:00:13][%cal Og4g5]} (17. Ne2 {keeps more tension.} Qd5 18. Ne5 Bd6 19. g5) 17... c5 {[%emt 0:00:16] Prevents g5.} 18. dxc5 {[%emt 0:00:07]} (18. g5 $16) 18... Nxc5 {[%emt 0:00:03] ...Qxd2 is the strong threat.} 19. Qxb4 {[%emt 0:00:06]} Nxa4 {[%emt 0:00:04]} 20. Qxa4 {[%emt 0:00:03]} Qb6 {[%emt 0:00:02] [#]} 21. Ne5 {[%emt 0:00:04]} (21. g5 $1 $16) 21... Bf6 $11 {[%emt 0:00:04]} 22. Nc4 {[%emt 0:00:03] Active counter play!} Qb7 {[%emt 0:00:02] Strongly threatening ...Rac8.} (22... Qc5 $5 {[%cal Ra8b8]}) 23. Rhe1 $2 {[%emt 0:00:04]} (23. g5 $14 {keeps the upper hand.} Qe4+ 24. Ka1) 23... Rab8 $19 {[%emt 0:00:06][%cal Rb7b2] Hoping for ...Qxb2+!} 24. Rd2 {[%emt 0:00:02]} (24. Qc2) 24... Rfd8 $2 {[%emt 0:00:03] [#]} (24... Bc3 $19 25. Nd6 Qb4 26. Qxb4 Rxb4) 25. Red1 {[%emt 0:00:02]} (25. Rxd8+ $15 Rxd8 26. g5 hxg5 27. hxg5 Bxg5 28. f4) 25... Rxd2 {[%emt 0:00:02]} ({And not} 25... Bxh4 26. Na5 Qa8 27. Qc6 $15) 26. Rxd2 {[%emt 0:00:01][%cal Og4g5]} Qh1+ {[%emt 0:00:01]} ({Not} 26... Bxh4 27. a3 $15) ({Better is} 26... Qe4+ $17 27. Qc2 Qxg4) 27. Qd1 $1 $11 {[%emt 0:00:02]} Qxh4 {[%emt 0:00:01]} 28. a3 {[%emt 0:00:04]} Qg5 {[%emt 0:00:02]} 29. Ka2 {[%emt 0:00:02]} Qb5 {[%emt 0:00:04]} 30. Qc2 {[%emt 0:00:02]} Qc6 {[%emt 0:00:02]} 31. Qd3 {[%emt 0:00:02]} (31. b4 $11) 31... Qb5 {[%emt 0:00:03]} (31... Rd8 $17 32. Qb3 Rxd2 33. Nxd2 g6) 32. Qc2 $15 {[%emt 0:00:02]} Qc6 {[%emt 0:00:01]} (32... Rd8 $15) 33. Qd3 $17 {[%emt 0:00:01]} Qb5 {[%emt 0:00:02]} (33... Rd8 $17 34. Qb3 Rxd2 35. Nxd2 g6) 34. Qc2 $1 {[%emt 0:00:01] Weighted Error Value: White=0.44/Black=0.49} 1/2-1/2

[Event "4th Tata Steel India Blitz Women 2022"]
[Site "Kolkota"]
[Date "2022.12.03"]
[Round "6.2"]
[White "Savitha Shri B"]
[Black "Vaishali, Rameshbabu"]
[Result "0-1"]
[ECO "B53"]
[WhiteElo "2411"]
[BlackElo "2454"]
[Annotator "TA"]
[PlyCount "92"]
[EventDate "2022.11.29"]
[EventType "tourn"]
[EventCountry "IND"]
[SourceTitle "playchess.com"]
[Source "ChessBase"]
[SourceQuality "1"]
[TimeControl "180+2"]

{[%evp 9,92,9,21,12,6,0,0,6,4,0,6,-40,-35,-52,-54,-40,-45,-37,-48,-37,-50,-62,-54,-81,-79,-74,-83,-88,-21,-66,-63,-95,-75,-93,-91,-93,0,-83,0,-90,-89,-86,-12,-12,-20,-12,-12,-19,-16,-39,0,-10,0,-10,-16,-21,-8,-20,-4,-73,-43,-67,-41,-41,-40,-36,-22,-28,-24,-16,-20,-80,-81,-87,-66,-89,-88,-79,-16,-64,-68,-88,-30,-7316,-6597]} 1. e4 {[%emt 0:00:01]} c5 {[%emt 0:00:02]} 2. Nf3 {[%emt 0:00:02]} d6 {[%emt 0:00:01]} 3. d4 {[%emt 0:00:01]} cxd4 {[%emt 0:00:02]} 4. Qxd4 {[%emt 0:00:01]} Nf6 {[%emt 0:00:02]} 5. Be2 {[%emt 0:00:02]} Nc6 {[%emt 0:00:22]} 6. Qe3 {[%emt 0:00:01] B53: Sicilian: 2...d6: Lines with Qxd4.} g6 {[%emt 0:00:03]} 7. h3 {[%emt 0:00:02]} Bg7 {[%emt 0:00:02]} 8. O-O {[%emt 0:00:01] The position is equal.} O-O {[%emt 0:00:03]} 9. Rd1 {[%emt 0:00:02]} Nd7 {[%emt 0:00:12]} 10. c4 {[%emt 0:00:04]} (10. c3 $11) 10... Qb6 $15 {[%emt 0:00:14]} 11. Nc3 {[%emt 0:01:18]} Qxe3 {[%emt 0:00:14]} 12. Bxe3 {[%emt 0:00:01]} Bxc3 $1 {[%emt 0:00:06]} 13. bxc3 {[%emt 0:00:01]} b6 {[%emt 0:00:10]} 14. Nd4 {[%emt 0:00:15]} Bb7 {[%emt 0:00:07] [#]} 15. Bg5 $146 {[%emt 0:00:06]} ({Predecessor:} 15. Nxc6 Bxc6 16. f3 Rac8 17. a4 f5 18. a5 fxe4 19. fxe4 Bxe4 20. axb6 axb6 21. Ra7 {½-½ (45) Ruiz Castillo,J (2497)-Paragua,M (2513) Las Vegas 2019}) 15... Rfe8 {[%emt 0:00:22]} 16. Rab1 {[%emt 0:00:18]} Nc5 {[%emt 0:00:12]} 17. f3 {[%emt 0:00:04]} f6 {[%emt 0:00:09]} 18. Be3 {[%emt 0:00:02]} Na5 {[%emt 0:00:11]} (18... Rec8 $17) 19. Nb5 {[%emt 0:00:08]} Rec8 {[%emt 0:00:05]} 20. h4 {[%emt 0:00:28][%cal Oh4h5]} Ba6 {[%emt 0:00:11]} 21. Bd4 {[%emt 0:00:00]} Na4 {[%emt 0:00:18]} 22. Rb4 {[%emt 0:00:00]} Nc5 {[%emt 0:00:14]} 23. Rbb1 {[%emt 0:00:03]} Na4 {[%emt 0:00:04] Inhibits h5.} 24. Rb4 $1 {[%emt 0:00:02]} Bxb5 {[%emt 0:00:02]} 25. Rxb5 {[%emt 0:00:03]} e5 {[%emt 0:00:04]} (25... Rc7 $17) 26. Rb4 $1 $11 {[%emt 0:00:10]} exd4 {[%emt 0:00:08]} 27. Rxa4 {[%emt 0:00:01]} dxc3 {[%emt 0:00:01]} 28. Rc1 {[%emt 0:00:14]} Rc5 $36 {[%emt 0:00:07][%mdl 2048] Black fights for an advantage.} 29. Rxc3 {[%emt 0:00:02]} Rac8 {[%emt 0:00:02]} 30. Kf2 {[%emt 0:00:03]} Kf7 {[%emt 0:00:04]} 31. Raa3 {[%emt 0:00:06]} R8c7 {[%emt 0:00:03]} 32. Rc1 {[%emt 0:00:09]} Ke7 {[%emt 0:00:02]} 33. g4 {[%emt 0:00:02]} Nc6 {[%emt 0:00:03]} 34. Rb3 {[%emt 0:00:04]} (34. f4 $11 {keeps the balance.}) 34... Nd4 {[%emt 0:00:02]} 35. Rbc3 {[%emt 0:00:01]} Ne6 {[%emt 0:00:02] Black is more active.} 36. Ke3 {[%emt 0:00:01]} h6 {[%emt 0:00:02]} 37. a4 {[%emt 0:00:01]} g5 {[%emt 0:00:03]} 38. hxg5 {[%emt 0:00:02]} hxg5 {[%emt 0:00:01]} 39. Rh1 {[%emt 0:00:00]} Nf4 {[%emt 0:00:01][%cal Od6d5]} 40. Rh7+ {[%emt 0:00:03]} (40. Rcc1 $11) 40... Ke6 $17 {[%emt 0:00:06]} 41. Rxc7 {[%emt 0:00:10]} Rxc7 {[%emt 0:00:00] KRB-KRN} 42. Bd3 {[%emt 0:00:06]} Ke5 {[%emt 0:00:00][%cal Od6d5] [#] White must now prevent ...d5!} 43. Ra3 {[%emt 0:00:03]} Rc5 {[%emt 0:00:02] Inhibits a5.} (43... Ne6 $17) 44. Bf1 {[%emt 0:00:01]} (44. Ra1 $11 {should be considered.}) 44... Ne6 {[%emt 0:00:03]} 45. Rd3 {[%emt 0:00:02]} Ra5 {[%emt 0:00:03]} (45... Nc7 $17 46. Ra3 Na6) 46. Rd4 $2 {[%emt 0:00:03][%mdl 8192] [#]} Nxd4 {[%emt 0:00:02] Weighted Error Value: White=0.28 (precise) /Black=0.18 (very precise)} 0-1

[Event "4th Tata Steel India Blitz Women 2022"]
[Site "Kolkota"]
[Date "2022.12.03"]
[Round "6.3"]
[White "Muzychuk, Anna"]
[Black "Ushenina, Anna"]
[Result "1-0"]
[ECO "C43"]
[WhiteElo "2525"]
[BlackElo "2454"]
[Annotator "TA"]
[PlyCount "75"]
[EventDate "2022.11.29"]
[EventType "tourn"]
[EventCountry "IND"]
[SourceTitle "playchess.com"]
[Source "ChessBase"]
[SourceQuality "1"]
[TimeControl "180+2"]

{[%evp 9,75,6,14,3,15,8,15,14,16,5,4,0,304,321,306,307,326,318,307,260,272,269,322,319,441,39,8,-31,-27,0,38,0,29,0,357,344,346,355,350,362,355,356,363,349,443,412,515,501,530,524,525,524,594,596,593,593,583,583,657,637,707,700,872,792,781,777,848,827]} 1. e4 {[%emt 0:00:01]} e5 {[%emt 0:00:01]} 2. Nf3 {[%emt 0:00:01]} Nf6 {[%emt 0:00:01]} 3. d4 {[%emt 0:00:01]} Nxe4 {[%emt 0:00:03]} 4. dxe5 {[%emt 0:00:01]} d5 {[%emt 0:00:02]} 5. Nbd2 {[%emt 0:00:02]} Qd7 {[%emt 0:00:00]} 6. Bd3 {[%emt 0:00:01] C43: Petroff Defence: 3 d4.} Nc5 {[%emt 0:00:02]} 7. Be2 {[%emt 0:00:01]} Be7 {[%emt 0:00:02] [#]} 8. c3 $146 {[%emt 0:00:04] The position is equal.} ({Predecessor:} 8. Nd4 O-O 9. O-O Nc6 10. N2f3 Nxd4 11. Nxd4 c6 12. Bf4 Qd8 13. c3 f6 14. exf6 Bxf6 15. Be3 Ne6 16. Nxe6 Bxe6 17. Bd3 Qd6 18. Re1 Bf7 19. Qc2 h6 20. Qd2 {½-½ (20) Anderskewitz,R (2325)-Nowak,A (2260) LSS email 2019}) 8... O-O {[%emt 0:00:05]} 9. O-O {[%emt 0:00:02]} Ne6 {[%emt 0:00:02]} 10. Nd4 {[%emt 0:00:06][%cal Bf3d4,Bd4f5,Bf5e3][%mdl 32]} f6 $2 {[%emt 0:00:28][%mdl 8192] [#]} (10... Nf4 $11 {and Black is okay.}) 11. Bg4 $18 {[%emt 0:00:12]} f5 {[%emt 0:00:01]} 12. Bxf5 {[%emt 0:00:05]} Rxf5 {[%emt 0:00:03]} 13. Nxf5 {[%emt 0:00:01]} Nc6 {[%emt 0:00:08]} 14. Nf3 {[%emt 0:00:17]} Bf8 {[%emt 0:00:05]} 15. Re1 {[%emt 0:00:08]} Qf7 {[%emt 0:00:03]} 16. Ne3 {[%emt 0:00:05]} Nf4 {[%emt 0:00:04]} 17. Qa4 $2 {[%emt 0:00:53]} (17. Ng5 $18 Qd7 18. g3) 17... Nh3+ $1 $14 {[%emt 0:00:21][%mdl 64]} 18. Kf1 {[%emt 0:01:02] [#] Black must now prevent Qd1.} Nxe5 $1 {[%emt 0:00:03][%mdl 64]} 19. Qd1 {[%emt 0:00:01][%cal Oe3d5] Hoping for Nxd5!} c6 {[%emt 0:00:15][%cal Ob7b6]} 20. Qe2 {[%emt 0:00:02] Against b6} (20. Nxe5 $2 Qxf2#) 20... Ng6 {[%emt 0:00:22][%cal Ob7b6]} 21. Nc2 $1 {[%emt 0:00:11] Inhibits b6. aiming for Ncd4.} ({Much worse is} 21. gxh3 Nf4 22. Ng5 Bxh3+ 23. Nxh3 Nxe2 24. Rxe2 Qh5 $15) 21... Bd6 $2 {[%emt 0:00:30][%mdl 8192] Black is on the road to losing.} 22. Qe8+ $18 {[%emt 0:00:10]} ({Worse is} 22. gxh3 Bxh3+ 23. Kg1 Nf4 24. Bxf4 Qxf4 $14) 22... Qxe8 {[%emt 0:00:00]} 23. Rxe8+ {[%emt 0:00:01]} Kf7 {[%emt 0:00:01]} 24. Rxc8 {[%emt 0:00:06]} Rxc8 {[%emt 0:00:02]} 25. gxh3 {[%emt 0:00:01]} Rf8 {[%emt 0:00:04]} 26. Be3 {[%emt 0:00:01]} c5 {[%emt 0:00:05]} 27. Rd1 {[%emt 0:00:01]} Ne7 {[%emt 0:00:03]} 28. Ng5+ {[%emt 0:00:04] White is clearly winning.} Kg6 {[%emt 0:00:02]} 29. Ne6 {[%emt 0:00:01][%csl LRc5,LRf8]} Rc8 {[%emt 0:00:01]} 30. Bf4 {[%emt 0:00:04]} Rc6 {[%emt 0:00:06]} 31. Bxd6 {[%emt 0:00:01]} Rxd6 {[%emt 0:00:00]} 32. Nxc5 {[%emt 0:00:01]} b6 {[%emt 0:00:04]} 33. Nd3 {[%emt 0:00:02]} Kh5 {[%emt 0:00:08]} 34. Ne3 {[%emt 0:00:04]} Kh4 {[%emt 0:00:05]} 35. Nf4 {[%emt 0:00:03]} Rf6 {[%emt 0:00:07]} 36. Nfxd5 {[%emt 0:00:03]} Nxd5 {[%emt 0:00:04]} 37. Rxd5 {[%emt 0:00:01]} g6 {[%emt 0:00:04]} 38. Kg2 {[%emt 0:00:02] Weighted Error Value: White=0.27 (precise) /Black=0.58} 1-0